Cogmind - Beta 15 *** ADVENTURER MODE // 2025.08.25 @ 13:49:01 Player: lepire Result: Self-destructed Performance ------------- Evolutions (1) 500 Regions Visited (3) 600 Robots Destroyed (20) 100 Value Destroyed (436) 436 Prototype IDs (2) 40 Alien Tech Used (0) 0 Bonus (0) 0 TOTAL SCORE: 1676 Bonus ------- None Cogmind --------- Core Integrity 253/400 Matter 241/300 Energy 125/125 System Corruption 0% Temperature Cool (0) Movement Walking (120) Location -9/Materials Parts ------- > --- POWER (1) -------- Light Ion Engine > --- PROPULSION (2) --- Improved Aluminum Leg > --- UTILITY (4) ------ Small Storage Unit Visual Processing Unit > --- WEAPON (2) ------- Rocket Launcher > --- INVENTORY (8) ---- Ion Engine Light Ion Engine Aluminum Leg Improved Heat Sink Light Assault Rifle Grenade Launcher Datajack Peak State ------------ > --- POWER ------------ Light Ion Engine > --- PROPULSION ------- Aluminum Leg Improved Aluminum Leg > --- UTILITY ---------- Small Storage Unit Visual Processing Unit > --- WEAPON ----------- Light Assault Rifle Enhanced Flamer > --- INVENTORY -------- Ion Engine Light Ion Engine Aluminum Leg Improved Heat Sink Light Assault Rifle Grenade Launcher Rocket Launcher Datajack [Rating: 12] Favorites ----------- Power Light Ion Engine Engine Light Ion Engine Propulsion Aluminum Leg Leg Aluminum Leg Utility Small Storage Unit Device Field Recycling Unit Storage Small Storage Unit Processor Visual Processing Unit Weapon Light Assault Rifle Ballistic Gun Light Assault Rifle Launcher Grenade Launcher Special Weapon Enhanced Flamer Build | -11 -10 -10 -9 ------- Run | Yrd Mat Min Mat Slots Evolved 2 | . . . 2 Power . | . . . . Propulsion . | . . . . Utility 2 | . . . 2 Weapon . | . . . . Parts Attached 17 | 7 5 3 2 Power 4 | 2 2 . . Engine 4 | 2 2 . . Core . | . . . . Reactor . | . . . . Propulsion 4 | 2 . 1 1 Treads . | . . . . Leg 4 | 2 . 1 1 Wheel . | . . . . Hover . | . . . . Flight . | . . . . Utility 3 | 1 2 . . Device 1 | . 1 . . Storage 1 | 1 . . . Processor 1 | . 1 . . Hackware . | . . . . Protection . | . . . . Artifact . | . . . . Weapon 6 | 2 1 2 1 Energy Gun . | . . . . Energy Cannon . | . . . . Ballistic Gun 3 | 2 1 . . Ballistic Cannon . | . . . . Launcher 2 | . . 1 1 Special Weapon 1 | . . 1 . Impact Weapon . | . . . . Slashing Weapon . | . . . . Piercing Weapon . | . . . . Special Melee Weapon . | . . . . Unidentified Prototypes . | . . . . Parts Lost 3 | . . . 3 Power . | . . . . Propulsion 1 | . . . 1 Utility . | . . . . Weapon 2 | . . . 2 Highest Loss Streak 3 | . . . 3 To Critical Strikes . | . . . . Average Backups 4 | . 2 6 7 Power 1 | . 1 2 2 Propulsion . | . . . . Utility . | . . 1 1 Weapon 1 | . 1 2 2 Tool/Special . | . . . . Unused Backups 2 | . . . 2 Power . | . . . . Propulsion . | . . . . Utility 1 | . . . 1 Weapon . | . . . . Tool/Special 1 | . . . 1 Average Slot Usage (%) 91 | . 91 100 73 Engine 13 | . 14 14 11 Leg 26 | . 28 28 20 Device 1 | . 3 . . Storage 13 | . 14 14 11 Processor 8 | . 2 14 11 Ballistic Gun 20 | . 27 16 9 Special Weapon 5 | . . 10 8 Peak Build Rating 12 | 6 8 11 12 Average Rating 8 | 4 6 9 11 On Entrance 6 | . 6 8 11 Naked Turns . | . . . . Heaviest Build 19 | 11 19 13 12 Greatest Support 23 | 20 20 20 23 Greatest Overweight (x) 1 | 1 . . . Average Overweight (x) . | . . . . Largest Inventory Capacity 8 | 8 8 8 8 Average Capacity 7 | 7 8 8 8 Most Carried 8 | 1 5 8 8 Average Carried 4 | . 2 6 7 Final Capacity 8 | 8 8 8 8 Final Carried 7 | 1 5 7 7 Class Distribution -------------------- 70% | Mutant 29% | Scavenger-Mutant Dominant Class ---------------- Mutant | -10/Materials Mutant | -10/Mines Scavenger-Mutant | -9/Materials Resources | -11 -10 -10 -9 ----------- Run | Yrd Mat Min Mat Matter Collected 554 | 96 213 232 13 Remotely . | . . . . Salvage Created 469 | . 213 31 225 Parts 39 | . 24 1 14 Haulers Intercepted 1 | . 1 . . Recyclers Shooed 4 | . 2 1 1 Parts Field Recycled 11 | . 11 . . Retrieved Matter 84 | . 84 . . Parts Self-Destructed . | . . . . Prevented . | . . . . Kills | -11 -10 -10 -9 ------- Run | Yrd Mat Min Mat Combat Hostiles Destroyed 13 | . 8 1 4 Guns 9 | . 8 1 . Cannons 2 | . . . 2 AOE 2 | . . . 2 Classes Destroyed 8 | . 3 1 4 Worker 1 | . . . 1 Hauler 1 | . 1 . . Recycler 1 | . . . 1 Operator 1 | . . . 1 Watcher 3 | . 3 . . Swarmer 8 | . 8 . . Grunt 2 | . . 1 1 Sentry 3 | . . . 3 Best Kill Streak 4 | . 3 1 4 Combat Bots Only 3 | . 3 1 1 Max Kills in Single Turn 2 | . 1 1 2 Gunslinging . | . . . . Exploded 1 | . . . 1 Melee . | . . . . Uniques/NPCs Destroyed . | . . . . Combat | -11 -10 -10 -9 -------- Run | Yrd Mat Min Mat Hostile Shots Fired 107 | . 61 1 45 Missed 36 | . 24 1 11 Hits 71 | . 37 . 34 Projectile 71 | . 37 . 34 Critical Strikes 2 | . 2 . . Damage Taken 681 | . 222 . 459 Core 161 | . 14 . 147 Absorbed by Shields . | . . . . Ignored by Resistances 201 | . 74 . 127 Core Remaining (%) 97 | 100 . 94 . Volleys Fired 87 | . 49 12 26 Largest 2 | . 2 1 2 Hottest 100 | . 40 30 100 Shots Fired 143 | . 98 12 33 Gun 132 | . 98 11 23 Cannon . | . . . . Launcher 5 | . . 1 4 Special 6 | . . . 6 Kinetic 132 | . 98 11 23 Thermal 6 | . . . 6 Explosive 5 | . . 1 4 Electromagnetic . | . . . . Robot Hit Streak 12 | . 12 9 10 Robot Miss Streak 3 | . 3 1 1 Penetration Max . | . . . . Secondary Targets 1 | . 1 . . Max Gunslinging Chain 1 | . 1 . . Shots Hit Robots 93 | . 58 10 25 Core Hits 39 | . 19 3 17 Critical Kills . | . . . . Critical Parts Destroyed . | . . . . Critical Strikes . | . . . . Melee Attacks . | . . . . Impact . | . . . . Slashing . | . . . . Piercing . | . . . . Sneak Attacks . | . . . . Combat Hostiles . | . . . . Follow-up Attacks . | . . . . Damage Inflicted 1183 | . 573 138 472 Guns 874 | . 573 138 163 Cannons . | . . . . Explosions 244 | . . . 244 Melee . | . . . . Ramming . | . . . . Kinetic 874 | . 573 138 163 Thermal 65 | . . . 65 Explosive 244 | . . . 244 Electromagnetic . | . . . . Impact . | . . . . Slashing . | . . . . Piercing . | . . . . Highest Corruption . | . . . . Average Corruption . | . . . . Corruption Purged . | . . . . Corruption Blocked . | . . . . Overload Shots . | . . . . Overflow Damage 23 | . . . 23 Projectiles . | . . . . Explosions 23 | . . . 23 Melee . | . . . . Knockbacks . | . . . . Impact . | . . . . Kinetic . | . . . . Secondary . | . . . . Self-Inflicted Damage 92 | . . . 92 Shots 3 | . . . 3 Rammed . | . . . . Targets Rammed . | . . . . Kicked . | . . . . Crushed . | . . . . Highest Temperature 85 | . . . 85 Average Temperature 28 | . . . 28 Received Heat Transfer 147 | . . . 147 Siege Activations . | . . . . Martial Activations . | . . . . Shielding Activations . | . . . . Robots Disrupted . | . . . . Combat Hostiles . | . . . . Robots Corrupted . | . . . . Combat Hostiles . | . . . . Parts Fried . | . . . . Impact Corruptions . | . . . . Robots Melted . | . . . . Combat Hostiles . | . . . . Parts Melted . | . . . . Heat Transferred 480 | . . . 480 Parts Sabotaged . | . . . . Parts Stolen . | . . . . Parts Stripped . | . . . . Power Chain Reactions . | . . . . Alert | -11 -10 -10 -9 ------- Run | Yrd Mat Min Mat Maximum Alert Level . | . . . . Low Security (%) 100 | 100 100 100 100 Level 1 . | . . . . Level 2 . | . . . . Level 3 . | . . . . Level 4 . | . . . . Level 5 . | . . . . High Security . | . . . . Max Security . | . . . . Peak Influence 145 | . 80 23 145 Initial 16 | . . 16 . Average 10 | . 14 2 18 Influence Increases 507 | . 220 43 244 Destroy 0b10 Robot/C 260 | . 160 20 80 Destroy 0b10 Robot/NC 35 | . 20 . 15 Destroy Leader 68 | . 28 . 40 Successful Hack 14 | . 3 . 11 Disable Machine 72 | . 9 18 45 Destroy Structure 58 | . . 5 53 Influence Decreases 362 | . 170 93 99 Entered New Map 34 | . . 34 . Time Decay 300 | . 170 59 71 Lost Part 28 | . . . 28 Squads Dispatched 2 | . . . 2 Investigation . | . . . . Extermination . | . . . . Reinforcement 2 | . . . 2 Assault . | . . . . Garrison . | . . . . Intercept . | . . . . Searches Triggered . | . . . . Construction Impeded 1 | . . . 1 Haulers Reinforced . | . . . . Active Scanning Responses . | . . . . Cargo Convoy Interrupts . | . . . . Stealth | -11 -10 -10 -9 --------- Run | Yrd Mat Min Mat Distress Signals 1 | . 1 . . Communications Jammed . | . . . . Distress Signals . | . . . . Times Spotted 27 | . 18 2 7 Peak Tracking Total 5 | . 5 2 2 Tactical Retreats . | . . . . Traps | -11 -10 -10 -9 ------- Run | Yrd Mat Min Mat Traps Triggered 1 | . 1 . . Indirectly . | . . . . Trap Hack Attempts . | . . . . Triggered . | . . . . Disarmed . | . . . . Reprogrammed . | . . . . Reused . | . . . . Traps Extracted . | . . . . Installed . | . . . . Triggered . | . . . . Machines | -11 -10 -10 -9 ---------- Run | Yrd Mat Min Mat Machines Disabled 8 | . 1 2 5 Max in Single Turn 2 | . 1 2 2 Machines Repaired . | . . . . Machines Dismantled . | . . . . Machines Sabotaged . | . . . . Overloaded Fab Kills . | . . . . Hacking | -11 -10 -10 -9 --------- Run | Yrd Mat Min Mat Machines Accessed 3 | . 1 . 2 Terminals 3 | . 1 . 2 Fabricators . | . . . . Repair Stations . | . . . . Recycling Units . | . . . . Scanalyzers . | . . . . Garrison Access . | . . . . Total Hacks 7 | . 3 . 4 Successful 5 | . 1 . 4 Failed 2 | . 2 . . Catastrophic . | . . . . Database Lockouts . | . . . . Manual . | . . . . Terminals 7 | . 3 . 4 Fabricators . | . . . . Repair Stations . | . . . . Recycling Units . | . . . . Scanalyzers . | . . . . Garrison Access . | . . . . Terminal Hacks 5 | . 1 . 4 Prototype ID Bank 1 | . . . 1 Locate Traps 1 | . 1 . . Dispatch Records 1 | . . . 1 Maintenance Status 1 | . . . 1 Reinforcement Status 1 | . . . 1 Fabricator Hacks . | . . . . Repair Station Hacks . | . . . . Recycling Unit Hacks . | . . . . Scanalyzer . | . . . . Garrison Access Hacks . | . . . . Unauthorized Hacks . | . . . . Terminals . | . . . . Fabricators . | . . . . Repair Stations . | . . . . Recycling Units . | . . . . Scanalyzers . | . . . . Garrison Access . | . . . . Data Cores Recovered . | . . . . Used . | . . . . Hacking Detections 2 | . 1 . 1 Full Trace Events . | . . . . Feedback Events . | . . . . Feedback Blocked . | . . . . Robot Schematics Acquired . | . . . . Robots Built . | . . . . Authchips . | . . . . Time . | . . . . Total Robot Build Rating . | . . . . Part Schematics Acquired . | . . . . Parts Built . | . . . . Authchips . | . . . . Time . | . . . . Total Part Build Rating . | . . . . Parts Repaired . | . . . . Time . | . . . . Parts Recycled . | . . . . Recycled Matter . | . . . . Retrieved Matter . | . . . . Retrieved Components . | . . . . Parts Scanalyzed . | . . . . Part Schematics Acquired . | . . . . Parts Damaged . | . . . . Bothacking | -11 -10 -10 -9 ------------ Run | Yrd Mat Min Mat Used RIF Installer . | . . . . Robots Hacked . | . . . . Non-combat . | . . . . Combat . | . . . . Robot Hacks Applied . | . . . . Relay Couplers Released . | . . . . Fabnet Peak Effective % . | . . . . Robots Rewired . | . . . . Allies Hacked . | . . . . Hacks Repelled . | . . . . Allies | -11 -10 -10 -9 -------- Run | Yrd Mat Min Mat Total Allies . | . . . . Largest Group . | . . . . Highest-Rated Group . | . . . . Highest-Rated Ally . | . . . . Total Orders . | . . . . Ally Attacks . | . . . . Total Damage . | . . . . Kills . | . . . . Allies Corrupted . | . . . . Allies Melted . | . . . . Intel | -11 -10 -10 -9 ------- Run | Yrd Mat Min Mat Active Infowar (turns) 954 | . 153 551 250 Optics 954 | . 153 551 250 Robot Analysis Total . | . . . . Derelict Logs Recovered 2 | . . 2 . Drone Launches . | . . . . Drone Recoveries . | . . . . Exploration | -11 -10 -10 -9 ------------- Run | Yrd Mat Min Mat Turns Passed 1603 | 52 750 551 250 Spaces Moved 1118 | 38 498 430 152 Core 7 | 7 . . . Treads . | . . . . Legs 1111 | 31 498 430 152 Wheels . | . . . . Hover . | . . . . Flight . | . . . . Fastest Speed 50 | 50 120 120 120 Average Speed 119 | 108 120 120 120 Slowest Speed 120 | 120 120 120 120 Overloaded Moves . | . . . . Propulsion Burnouts . | . . . . Robots Hopped . | . . . . Potential Cave-ins . | . . . . Cave-ins Triggered . | . . . . Exploration Rate (%) 32 | 4 45 67 15 Regions Visited 3 Branch Regions 1 Pre-discovered Areas . | . . . . Known Exits Taken . | . . . . Unknown Exits Taken 3 | 1 1 1 . Scrap Searched 2 | . . 2 . Spaces Dug . | . . . . Terrain Destroyed 71 | . . 5 66 Melee . | . . . . Projectile . | . . . . AOE 71 | . . 5 66 Terrain Rammed . | . . . . Walls Destroyed . | . . . . Machines Disabled . | . . . . Actions | -11 -10 -10 -9 --------- Run | Yrd Mat Min Mat Total 1242 | 46 559 452 185 Wait 6 | . 2 . 4 Move 1115 | 37 497 429 152 Hop . | . . . . Pick Up 10 | 2 3 4 1 Fast Attach 7 | 5 2 . . Attach 3 | 1 1 . 1 Detach . | . . . . Swap 10 | 1 4 4 1 Drop 4 | . 1 3 . Fire 87 | . 49 12 26 Melee . | . . . . Ram . | . . . . Kick . | . . . . Crush . | . . . . Escape Stasis . | . . . . Rewire . | . . . . Trap . | . . . . Miscellaneous . | . . . . Route ------- -11/Scrapyard -10/Materials -10/Mines -9/Materials (discovered 1 exit: [*Min]) History --------- Turn | Location | Event 32 | -11/Scrapyard | Discovered new exit (range 16) 53 | -11/Scrapyard | Entered Materials 135 | -10/Materials | Discovered new exit (range 12) 312 | -10/Materials | Build established: Mutant 803 | -10/Materials | Entered Mines 847 | -10/Mines | A weapon hastily lodged in a ceiling crevice suddenly fell to the ground 886 | -10/Mines | Met a Derelict bent on vengeance 902 | -10/Mines | Learned Materials stockpile data 1131 | -10/Mines | Received a Rocket Launcher from a helpful Derelict 1193 | -10/Mines | Discovered new exit (range 18) 1269 | -10/Mines | Learned Materials garrison access intel 1354 | -10/Mines | Entered Materials 1354 | -9/Materials | Evolved 2 slots: Utility x2 1390 | -9/Materials | Build established: Scavenger-Mutant 1445 | -9/Materials | Discovered new exit (range 13) 1604 | -9/Materials | Self-destructed Last Messages --------------- 01572_ R-06 Scavenger destroyed. 01572_ O-16 Technician destroyed. 01572_ Aluminum Leg destroyed. 01572_ Destroyed Aluminum Leg. 01575_ Lgt. Assault Rifle destroyed. 01575_ Y-45 Defender destroyed. 01575_ Terminal disabled. 01576_ K-01 Serf collects debris. 01581_ Nuclear Reactor explodes. 01581_ Destroyed Lgt. Ion Engine. 01581_ K-01 Serf destroyed. 01583_ U-05 Engineer builds a Wall. 01583_ K-01 Serf collects debris. 01584_ The unstable cave ceiling collapses. 01591_ Atomic Centrifuge disabled. 01591_ ALERT: Construction progress impeded, dispatching reinforcements to local area. 01593_ K-01 Serf collects debris. 01602_ Terminal disabled. 01602_ G-34 Mercenary destroyed. Map ----- +----------------------------------------------------+ | ?????????????????????????????????????????????????? | | ?????????????????????????????????????????????????? | | ?????????????????????????????????????????????????? | | ????????#######################??????????????????? | | ????????# #??????????????????? | | ????????# #??????????????????? | | ????????# #??????????????????? | | ????????####+######+########+#####???????????????? | | ?????????# # ## #???????????????? | | ?????????#"" # """ ## #?????????####### | | ?????????#"T # """ ## """ """ #?????????# ] # | | ?????????#"" # """ ## """ """%########### # | | ?????????# # ## """ """!+ < + | | ?????????# # ## ########### # | | ?????????######## "" ## #?????? # # /# | | ????????????????# "T ## #?????# # ## | | ????????????????# "" ############?#### #? | | ????????????????# #????????????# # #? | | ????????????????#######????????????# % [ #? | | ???????????????????????????????????# ! # | | ???????????????????????????????????# # | | ???????????????????????##########??## + | | ???????????????????????# #??# ![ * % # | | ???????????????????????+ """ #### # # # | | ???????????????????????# " " [ # # # #? | | ???????????????????????# @ " =%= r #? | | ???????????????????????# #? | | ???????????????????????# #? | | ???????????????????????# " ######/##? | | ???????????????????????# # #????????? | | ???????????????????????# ##????????? | | ???????????????????????### # ###?????????? | | ?????????????????????????######### #???????????? | | ?????????????????????????????????# #???????????? | | ?????????????????????????????????# #???????????? | | ?????????????????????????????????# #???????????? | | ?????????????????????????????????+ #???????????? | | ?????????????????????????????????# #???????????? | | ?????????????????????????????????# #???????????? | | ?????????????????????????????????# ???????????? | | ?????????????????????????????????? ???????????? | | ?????????????????????????????????? ???????????? | | ??????????????????????????????????##+#???????????? | | ?????????????????=?????????????????? ????????????? | | ???????]?????????????????????????????????????????? | | ?????????????????????????????????????????????????? | | ?????????????????????????????????????????????????? | | ?????????????????????????????????????????????????? | | ?????????????????????????????????????????????????? | | ?????????????????????????????????????????????????? | +----------------------------------------------------+ Best States ------------- Heat Dissipation 28 Energy Generation 10 Energy Capacity 250 Matter Stores 300 Matter Capacity 300 Sight Range 18 Terrain Scan Density 10 Resistance: KI 20 Resistance: TH 20 Resistance: EX 20 Resistance: EM 20 Resistance: I 20 Resistance: S 20 Resistance: P 20 Evasion (%) 55 Offensive Hacking 10 Item Schematics ----------------- None Robot Schematics ------------------ None Fabricated ------------ Nothing Repaired ---------- Nothing Alien Tech Used ----------------- None Achievements -------------- None Challenges ------------ None Game ------ Seed SurveybotSpliceMask Manual? 0 Play Time 00:18:02 Cumulative 17.8 hours Start 2025.08.25 @ 13:33:16 End 2025.08.25 @ 13:49:01 Sessions 1 Manual Loads 0 Difficulty Adventurer Special Mode None Game No. 27 Rogue 0 Adventurer 27 Explorer 0 Win Type - Total 0 Types 0/0/0/0/0/0/0/0/0/0 Lore% 10 Gallery% 18 Achievement% 16 Wizard Run 0 Options --------- Layout 1 ASCII 0 Keyboard 1 Movement Arrows Keybinds 0 Fullscreen 1 Font 24/Smallcaps Map View 50x35 Zoom Use 0% Tactical HUD 1 Map Filters NONE Filters NONE Steam 1 RUN: 13fb1493-f58b-4495-a729-0a1829e5641d